bitfinex/quotes_ETHUSD_20230109
["timestamp","ask_amount","ask_price","bid_price","bid_amount"]
[1673240806836,3.99861678,1312.0,1311.8,31.77652922]
[1673240807256,1.71510692,1311.9,1311.8,31.77652922]
[1673240809062,3.99844463,1312.0,1311.8,33.66880113]
[1673240809230,3.99844463,1312.0,1311.8,31.77652922]
[1673240809446,1.71493477,1312.0,1311.8,34.61485995]
[1673240816289,3.99844463,1312.1,1311.8,34.61485995]
[1673240818097,3.99844463,1312.1,1311.8,33.73306995]
[1673240819992,3.99844463,1312.1,1311.9,1.75]
[1673240820183,11.41491137,1312.2,1312.1,1.13519302]
[1673240820184,1.71493477,1312.2,1312.1,1.13519302]
[1673240820513,1.71493477,1312.2,1312.1,26.99930302]
[1673240820673,1.71493477,1312.2,1312.1,27.69222563]
[1673240823014,3.99844463,1312.3,1312.1,27.69222563]
[1673240824509,3.99844463,1312.3,1312.1,27.68982622]
[1673240824693,3.99844463,1312.3,1312.1,30.52631283]
[1673240824911,1.71493477,1312.3,1312.1,34.52631283]
[1673240825160,1.71493477,1312.3,1312.2,0.02176264]
[1673240825369,12.17874463,1312.4,1312.2,22.88410264]
[1673240825900,12.17874463,1312.4,1312.2,15.95624525]
[1673240826207,1.71493477,1312.3,1312.2,15.95624525]
[1673240826424,1.71493477,1312.3,1312.2,18.95624525]
[1673240829104,12.17874463,1312.4,1312.2,18.95624525]
[1673240829975,12.17874463,1312.4,1312.2,26.57702525]
[1673240830509,12.17874463,1312.4,1312.2,18.95624525]
[1673240831084,9.89523477,1312.4,1312.2,18.95624525]
[1673240831444,9.89523477,1312.4,1312.2,26.57702525]
[1673240831830,9.89523477,1312.4,1312.2,18.95624525]
[1673240833518,1.71493477,1312.3,1312.2,3.69292261]
[1673240833735,9.90370986,1312.3,1312.2,3.69292261]
[1673240834258,11.61398576,1312.3,1312.2,3.69292261]
[1673240834453,9.90370986,1312.3,1312.2,3.69292261]
[1673240834676,14.10694325,1312.3,1312.2,3.69292261]
[1673240835106,14.10694325,1312.3,1312.2,0.69292261]
[1673240835319,6.48674325,1312.3,1312.2,3.69292261]
[1673240835857,9.34125462,1312.3,1312.2,3.69292261]
[1673240836276,9.34125462,1312.3,1312.2,0.69292261]
[1673240836482,6.48674325,1312.3,1312.2,0.69292261]
[1673240836696,2.28350986,1312.3,1312.2,0.69292261]
[1673240836932,12.75822123,1312.3,1312.2,0.69292261]
[1673240837938,12.75822123,1312.3,1312.1,4.13279361]
[1673240838148,3.99440607,1312.2,1312.1,4.13279361]
[1673240838568,1.71089621,1312.2,1312.1,4.13279361]
[1673240839007,3.99440607,1312.2,1312.1,4.13279361]
[1673240840080,3.99440607,1312.2,1312.1,1.13279361]
[1673240840289,4.1304266,1312.2,1312.1,11.75416361]
[1673240840501,2.28350986,1312.2,1312.1,20.17432094]
[1673240840664,3.99480246,1312.2,1312.1,20.17432094]
[1673240840878,2.28350986,1312.2,1312.1,20.17432094]
[1673240842682,3.99516175,1312.2,1312.1,20.17432094]
[1673240844172,3.99516175,1312.2,1312.1,12.55295094]
[1673240844714,3.99516175,1312.2,1312.1,27.79171199]
[1673240845181,3.99563135,1312.2,1312.1,27.79171199]
[1673240845761,1.71212149,1312.2,1312.1,27.79171199]
[1673240846288,1.71212149,1312.2,1312.1,28.4846346]
[1673240851130,3.99563135,1312.2,1312.1,28.4846346]
[1673240851305,1.71212149,1312.2,1312.1,28.4846346]
[1673240851766,1.71212149,1312.2,1312.1,27.68584727]
[1673240853653,1.71212149,1312.2,1312.1,12.44310727]
[1673240854046,3.99563135,1312.2,1312.1,12.44310727]
[1673240854289,2.28350986,1312.2,1312.1,20.06447727]
[1673240854503,3.99640594,1312.2,1312.1,20.06447727]
[1673240855567,2.28350986,1312.2,1312.1,20.06447727]
[1673240855710,2.2803943,1312.2,1312.1,20.06447727]
[1673240857047,3.99349078,1312.2,1312.1,20.06447727]
[1673240857357,2.2803943,1312.2,1312.1,27.68584727]
[1673240857640,2.2803943,1312.2,1312.1,28.64954727]
[1673240857799,3.99355412,1312.2,1312.1,28.64954727]
[1673240858176,1.71315982,1312.2,1312.1,28.64954727]
[1673240860955,1.71315982,1312.2,1312.1,21.02817727]
[1673240861540,1.71315982,1312.2,1312.1,28.64954727]
[1673240863848,1.71315982,1312.2,1312.1,27.95662466]
[1673240866269,3.99759208,1312.2,1312.1,27.95662466]
[1673240866904,1.71315982,1312.2,1312.1,27.95662466]
[1673240880095,1.71315982,1312.2,1312.1,27.9534266]
[1673240884268,1.71448526,1312.2,1312.1,27.9534266]
[1673240884696,1.71448526,1312.2,1312.1,30.53817256]
[1673240884963,1.66448526,1312.2,1312.1,30.53817256]
[1673240885570,1.66448526,1312.2,1312.1,29.57447256]
[1673240887652,1.66448526,1312.2,1312.1,29.57448316]
[1673240887847,1.66448526,1312.2,1312.1,27.68264921]
[1673240888065,1.66448526,1312.2,1312.1,29.57448395]
[1673240888397,1.66448526,1312.2,1312.1,27.68264921]
[1673240888612,1.66448526,1312.2,1312.1,29.5744878]
[1673240889227,1.66448526,1312.2,1312.1,29.57447083]
[1673240889556,1.66448526,1312.2,1312.1,27.68264921]
[1673240889875,1.66448526,1312.2,1312.1,29.57448022]
[1673240890054,3.37896274,1312.2,1312.1,29.57448022]
[1673240890270,3.37849459,1312.2,1312.1,29.57448022]
[1673240893334,3.37849459,1312.2,1312.1,21.95311022]
[1673240894181,5.66292685,1312.2,1312.1,21.95311022]
[1673240894617,3.37849459,1312.2,1312.1,21.95311022]
[1673240895655,5.66292685,1312.2,1312.1,6.01744761]
[1673240896793,5.66292685,1312.2,1312.1,13.63881761]
[1673240897213,5.66292685,1312.2,1312.1,6.01744761]
[1673240899107,3.94891752,1312.2,1312.1,6.01744761]
[1673240899307,3.94891752,1312.2,1312.1,4.89183101]
[1673240899753,5.66350487,1312.2,1312.1,4.89183101]
[1673240900089,5.66350487,1312.2,1312.1,12.51320101]
[1673240900624,5.66350487,1312.2,1312.1,4.89183101]
[1673240903431,5.66348664,1312.2,1312.1,4.89183101]
[1673240904094,5.66348664,1312.2,1312.1,12.51320101]
[1673240904782,3.94891752,1312.2,1312.1,12.51320101]
[1673240904992,3.94891752,1312.2,1312.1,20.13457101]
[1673240904993,5.66343839,1312.2,1312.1,20.13457101]
[1673240905252,3.37900613,1312.2,1312.1,31.79421326]
[1673240905421,3.37900613,1312.2,1312.1,35.79421326]
[1673240905616,1.66448526,1312.2,1312.1,31.79421326]
[1673240905848,3.37887164,1312.2,1312.1,31.79421326]
[1673240906151,10.23639034,1312.2,1312.1,31.79421326]
[1673240906357,8.52201667,1312.2,1312.1,31.79421326]
[1673240906711,11.95076252,1312.2,1312.1,31.79421326]
[1673240906886,15.37951496,1312.2,1312.1,31.79421326]
[1673240907120,17.09389056,1312.2,1312.1,31.79421326]
[1673240907408,18.80826711,1312.2,1312.1,33.68607148]
[1673240907645,18.80826711,1312.2,1312.1,38.26779144]
[1673240908379,18.80826711,1312.2,1312.1,39.13079144]
[1673240909769,18.80826711,1312.2,1312.1,37.38679144]
[1673240909926,18.80826711,1312.2,1312.1,39.13679144]
[1673240910132,18.80826711,1312.2,1312.1,41.98704004]
[1673240910351,1.71436876,1312.3,1312.1,43.12200192]
[1673240910631,1.71436876,1312.3,1312.2,32.38178137]
[1673240910763,1.71436876,1312.3,1312.2,36.38433373]
[1673240910969,1.71436876,1312.3,1312.2,41.07725634]
[1673240912067,1.71436876,1312.3,1312.2,37.07725634]
[1673240912287,1.71436876,1312.3,1312.2,35.96147685]
[1673240912499,1.71436876,1312.3,1312.2,33.12375689]
[1673240912675,1.71436876,1312.3,1312.2,31.38275689]
[1673240913048,1.71436876,1312.3,1312.2,31.38254428]
[1673240913367,1.71436876,1312.3,1312.2,29.63454428]
[1673240913532,1.71436876,1312.3,1312.2,30.31054428]
[1673240914160,1.71436876,1312.3,1312.2,28.41889867]
[1673240919203,1.71436876,1312.3,1312.2,29.63451079]
[1673240921946,1.71436876,1312.3,1312.2,20.12211867]
[1673240922170,1.71436876,1312.3,1312.2,11.33650627]
[1673240922383,1.71436876,1312.3,1312.2,18.95728627]
[1673240923444,1.71436876,1312.3,1312.2,28.46967095]
[1673240924029,1.71436876,1312.3,1312.2,26.57806627]
[1673240925306,1.71436876,1312.3,1312.2,28.46966431]
[1673240926911,1.71436876,1312.3,1312.2,26.57806627]
[1673240927338,1.71436876,1312.3,1312.2,28.46964321]
[1673240928001,1.71436876,1312.3,1312.2,31.46964321]
[1673240928315,1.71436876,1312.3,1312.2,34.30702874]
[1673240928691,1.71436876,1312.3,1312.2,31.30702874]
[1673240928898,1.71436876,1312.3,1312.2,28.46964321]
[1673240929157,1.71436876,1312.3,1312.2,32.46964321]
[1673240929481,1.71436876,1312.3,1312.2,35.30702874]
[1673240929703,1.71436876,1312.3,1312.2,31.30702874]
[1673240929846,1.71436876,1312.3,1312.2,28.46964321]
[1673240930473,1.71436876,1312.3,1312.2,32.46964321]
[1673240930676,1.71436876,1312.3,1312.2,35.30702874]
[1673240931005,1.71436876,1312.3,1312.2,31.30702874]
[1673240931231,1.71436876,1312.3,1312.2,28.46964321]
[1673240931581,1.71436876,1312.3,1312.2,34.21864321]
[1673240931730,1.71436876,1312.3,1312.2,37.05602874]
[1673240935269,1.71114193,1312.3,1312.2,38.19379748]
[1673240935892,1.71114193,1312.3,1312.2,38.80630154]
[1673240936089,1.71114193,1312.3,1312.2,41.64368707]
[1673240936556,1.71114193,1312.3,1312.2,39.93279748]
[1673240936737,1.71114193,1312.3,1312.2,41.64368707]
[1673240936949,1.71114193,1312.3,1312.2,39.93279748]
[1673240939389,1.71114193,1312.3,1312.2,38.79502874]
[1673240940086,1.71114193,1312.3,1312.2,35.93279748]
[1673240940777,1.71114193,1312.3,1312.2,31.95764321]
[1673240941150,1.71114193,1312.3,1312.2,34.79495674]
[1673240941370,1.71114193,1312.3,1312.2,31.95764321]
[1673240941924,1.71114193,1312.3,1312.2,32.69464321]
[1673240942716,1.71114193,1312.3,1312.2,36.69464321]
[1673240942980,1.71114193,1312.3,1312.2,40.66964814]
[1673240943136,1.71114193,1312.3,1312.2,38.92064814]
[1673240943351,1.71114193,1312.3,1312.2,37.18164814]
[1673240946001,1.71114193,1312.3,1312.2,33.18164814]
[1673240946811,1.71114193,1312.3,1312.2,34.89253773]
[1673240947021,1.71114193,1312.3,1312.2,38.89253773]
[1673240949211,1.71114193,1312.3,1312.2,34.89253773]
[1673240949616,1.71114193,1312.3,1312.2,33.18164814]
[1673240949836,1.71114193,1312.3,1312.2,37.18164814]
[1673240950750,1.71114193,1312.3,1312.2,36.0438794]
[1673240954358,1.71114193,1312.3,1312.2,40.03302891]
[1673240954573,1.93e-06,1312.3,1312.2,46.89604228]
[1673240955656,1.93e-06,1312.3,1312.2,44.0513498]
[1673240956098,1.93e-06,1312.3,1312.2,45.75846027]
[1673240956309,1.93e-06,1312.3,1312.2,44.0513498]
[1673240957400,1.93e-06,1312.3,1312.2,45.75870675]
[1673240958013,1.93e-06,1312.3,1312.2,44.0513498]
[1673240958227,1.93e-06,1312.3,1312.2,47.50657143]
[1673240960340,1.93e-06,1312.3,1312.2,45.7993498]
[1673240960552,1.93e-06,1312.3,1312.2,43.50662408]
[1673240960941,1.93e-06,1312.3,1312.2,41.23230319]
[1673240961270,1.93e-06,1312.3,1312.2,43.50662408]
[1673240961454,1.93e-06,1312.3,1312.2,41.23230319]
[1673240961663,1.93e-06,1312.3,1312.2,43.50662408]
[1673240962522,1.93e-06,1312.3,1312.2,40.01462408]
[1673240964247,0.22619649,1312.3,1312.2,40.01462408]
[1673240965450,0.22619649,1312.3,1312.2,38.3073498]
[1673240969286,0.22619649,1312.3,1312.2,40.01634389]
[1673240969820,0.22619649,1312.3,1312.2,33.16055608]
[1673240970060,0.22619649,1312.3,1312.2,34.86955017]
[1673240970390,0.22619649,1312.3,1312.2,33.16055608]
[1673240970601,0.22619649,1312.3,1312.2,34.86955017]
[1673240970992,0.22619649,1312.3,1312.2,32.03231398]
[1673240971930,0.22619649,1312.3,1312.2,31.29531398]
[1673240972282,0.22619649,1312.3,1312.2,34.13255017]
[1673240972444,0.22619649,1312.3,1312.2,31.29531398]
[1673240972864,0.22619649,1312.3,1312.2,29.58631989]
[1673240973073,0.22619649,1312.3,1312.2,31.29531398]
[1673240973324,0.22619649,1312.3,1312.2,29.58631989]
[1673240973525,0.22619649,1312.3,1312.2,31.29531398]
[1673240973729,0.22619649,1312.3,1312.2,29.58631989]
[1673240974140,6.49e-06,1312.3,1312.2,31.29531398]
[1673240974348,6.49e-06,1312.3,1312.2,34.13255017]
[1673240974594,26.20763988,1312.5,1312.4,0.00199351]
[1673240974808,24.47134771,1312.5,1312.4,22.86085351]
[1673240975326,24.47134771,1312.5,1312.4,25.86085351]
[1673240978439,24.47134771,1312.5,1312.4,27.75231346]
[1673240978856,24.47134771,1312.5,1312.4,25.86085351]
[1673240979692,26.75577997,1312.5,1312.4,25.86085351]
[1673240980365,24.47134771,1312.5,1312.4,25.86085351]
[1673240980686,28.65099757,1312.5,1312.4,25.86085351]
[1673240982840,28.65099757,1312.5,1312.4,18.24123351]
[1673240982841,30.93542983,1312.5,1312.4,18.24123351]
[1673240983070,28.65099757,1312.5,1312.4,18.24123351]
[1673240983837,28.65099757,1312.5,1312.4,25.86085351]
[1673240984836,30.38499757,1312.5,1312.4,25.86085351]
[1673240987621,26.20534771,1312.5,1312.4,25.86085351]
[1673240991711,24.49097111,1312.5,1312.4,25.86085351]
[1673240994871,22.75697111,1312.5,1312.4,25.86085351]
[1673240999550,25.04140337,1312.5,1312.4,25.86085351]
[1673240999767,22.75697111,1312.5,1312.4,25.86085351]
[1673241000119,26.54018331,1312.5,1312.4,25.86085351]
[1673241003131,22.75697111,1312.5,1312.4,25.86085351]
[1673241011037,22.75697111,1312.5,1312.4,26.46785179]
[1673241013228,25.04140337,1312.5,1312.4,26.46785179]
[1673241015204,25.04140337,1312.5,1312.4,25.86085351]
[1673241017990,25.04140337,1312.5,1312.4,18.24123351]
[1673241018160,28.64961557,1312.5,1312.4,18.24123351]
[1673241024980,31.50368843,1312.5,1312.4,18.23724358]
[1673241025194,31.50570836,1312.5,1312.4,10.61762358]
[1673241025447,31.50570836,1312.5,1312.4,3.0]
[1673241025448,31.50570433,1312.5,1312.4,3.0]
[1673241025663,33.25170433,1312.5,1312.4,3.0]
[1673241025839,33.25171358,1312.5,1312.4,3.0]
[1673241028569,33.25110393,1312.5,1312.4,3.0]
[1673241029505,33.4737345,1312.5,1312.4,10.61962]
[1673241030582,33.4737345,1312.5,1312.4,18.23924]
[1673241031864,34.1157345,1312.5,1312.4,18.23924]
[1673241034912,27.65344944,1312.5,1312.4,18.23924]
[1673241035229,27.65344944,1312.5,1312.4,25.85886]
[1673241035605,25.90744944,1312.5,1312.4,25.85886]
[1673241037443,25.26544944,1312.5,1312.4,25.85886]
[1673241046342,25.26544944,1312.5,1312.4,25.85570654]
[1673241047972,28.1195223,1312.5,1312.4,25.85570654]
[1673241048358,25.26544944,1312.5,1312.4,25.85570654]
[1673241048574,28.1195223,1312.5,1312.4,25.85570654]
[1673241048785,25.26544944,1312.5,1312.4,25.85570654]
[1673241049205,28.1195223,1312.5,1312.4,25.85570654]
[1673241049614,25.26544944,1312.5,1312.4,25.85570654]
[1673241049824,28.1195223,1312.5,1312.4,25.85570654]
[1673241050602,25.26544944,1312.5,1312.4,25.85570654]
[1673241053179,22.97960168,1312.5,1312.4,25.85570654]
[1673241054442,22.97960168,1312.5,1312.4,26.74280654]
[1673241056590,22.97960168,1312.5,1312.4,27.42290662]
[1673241059400,25.26544944,1312.5,1312.4,27.42290662]
[1673241060163,22.97960168,1312.5,1312.4,27.42290662]
[1673241063308,22.97960168,1312.5,1312.4,12.18366662]
[1673241063526,22.97960168,1312.5,1312.4,19.80328662]
[1673241064229,22.97960168,1312.5,1312.4,27.42290662]
[1673241065226,22.97960168,1312.5,1312.4,19.80328662]
[1673241065731,25.26544944,1312.5,1312.4,19.80328662]
[1673241065949,28.89606625,1312.5,1312.4,19.80328662]
[1673241067162,28.89606625,1312.5,1312.4,19.79958251]
[1673241067583,28.89606625,1312.5,1312.4,27.41920251]
[1673241068057,26.61021849,1312.5,1312.4,27.41920251]
[1673241068418,22.97960168,1312.5,1312.4,27.41920251]
[1673241071149,22.97960168,1312.5,1312.4,29.31067048]
[1673241071612,22.97960168,1312.5,1312.4,27.41920251]
[1673241071800,22.97960168,1312.5,1312.4,19.79958251]
[1673241074248,22.97960168,1312.5,1312.4,27.41920251]
[1673241075357,22.97960168,1312.5,1312.4,19.79958251]
[1673241075568,22.97960168,1312.5,1312.4,21.69105673]
[1673241075819,22.97960168,1312.5,1312.4,29.31067673]
[1673241075996,22.97960168,1312.5,1312.4,27.41920251]
[1673241076212,26.32481121,1312.5,1312.4,19.79958251]
[1673241081181,26.32481121,1312.5,1312.4,27.41920251]
[1673241081517,22.97960168,1312.5,1312.4,27.41920251]
[1673241083556,22.97960168,1312.5,1312.4,19.79958251]
[1673241083765,29.25459895,1312.5,1312.4,3.88024243]
[1673241084191,29.25459895,1312.5,1312.4,11.49986243]
[1673241084401,29.25459895,1312.5,1312.4,10.61276243]
[1673241085025,33.45913071,1312.5,1312.4,10.61276243]
[1673241086719,35.17340219,1312.5,1312.4,2.99314243]
[1673241086936,33.45913071,1312.5,1312.4,2.99314243]
[1673241087349,36.31320357,1312.5,1312.4,2.99314243]
[1673241087561,33.45913071,1312.5,1312.4,2.99314243]
[1673241088006,33.45913071,1312.5,1312.4,3.84204243]
[1673241088606,33.45913071,1312.5,1312.4,3.83964398]
[1673241090808,36.31320357,1312.5,1312.4,3.83964398]
[1673241091045,33.45913071,1312.5,1312.4,3.83964398]
[1673241091465,33.45913071,1312.5,1312.4,26.69850398]
[1673241092614,35.17346273,1312.5,1312.4,19.07888398]
[1673241093861,31.18431322,1312.5,1312.4,26.69850398]
[1673241094089,26.97978146,1312.5,1312.4,26.69850398]
[1673241094299,24.6939337,1312.5,1312.4,26.69850398]
[1673241094524,24.6939337,1312.5,1312.4,19.07888398]
[1673241094948,26.97978146,1312.5,1312.4,19.07888398]
[1673241095175,24.6939337,1312.5,1312.4,19.07888398]
[1673241104106,26.97978146,1312.5,1312.4,19.07888398]
[1673241106309,26.97978146,1312.5,1312.4,26.69850398]
[1673241106310,24.6939337,1312.5,1312.4,26.69850398]
[1673241108241,30.95683147,1312.5,1312.4,19.07888398]
[1673241109551,26.97978146,1312.5,1312.4,19.07888398]
[1673241110702,26.97978146,1312.5,1312.4,19.07540031]
[1673241113428,26.97978146,1312.5,1312.4,26.69502031]
[1673241114862,26.97978146,1312.5,1312.4,19.07540031]
[1673241116426,25.26544944,1312.5,1312.4,11.45578031]
[1673241116948,29.07106625,1312.5,1312.4,11.45578031]
[1673241117158,31.92513911,1312.5,1312.4,11.45578031]
[1673241117483,31.92513911,1312.5,1312.4,3.83616031]
[1673241118166,31.92513911,1312.5,1312.4,2.98726031]
[1673241120726,31.92275204,1312.5,1312.4,2.98726031]
[1673241121482,29.63690428,1312.5,1312.4,2.98726031]
[1673241121792,29.63690428,1312.5,1312.4,3.97114031]
[1673241122417,31.92148952,1312.5,1312.4,3.97114031]
[1673241122632,31.92145964,1312.5,1312.4,3.97114031]
[1673241123122,37.69852081,1312.5,1312.4,0.98388]
[1673241123469,45.88946081,1312.5,1312.4,0.98388]
[1673241123835,44.13946081,1312.5,1312.4,0.98388]
[1673241125739,36.52042081,1312.5,1312.4,0.98388]
[1673241126515,33.09188093,1312.5,1312.4,0.98388]
[1673241127215,35.94192489,1312.5,1312.4,0.98388]
[1673241127435,35.94192489,1312.5,1312.3,0.69679]
[1673241127668,7.97877664,1312.4,1312.3,0.69679]
[1673241128410,7.97907782,1312.4,1312.3,0.69679]
[1673241129480,1.71014138,1312.4,1312.3,0.69679]
[1673241129695,27.53904292,1312.5,1312.3,23.55739]
[1673241129900,1.71014138,1312.4,1312.3,23.55739]
[1673241130296,27.53904292,1312.5,1312.3,23.55739]
[1673241130510,26.96714292,1312.5,1312.3,26.9752]
[1673241131241,26.96714292,1312.5,1312.3,19.355]
[1673241132523,26.96714292,1312.5,1312.3,11.7348]
[1673241132740,26.96714292,1312.5,1312.3,8.31699]
[1673241133339,29.81718688,1312.5,1312.3,8.31699]
[1673241133557,5.71014138,1312.4,1312.3,8.31699]
[1673241133805,1.71014138,1312.4,1312.3,11.31699]
[1673241139961,3.98992831,1312.4,1312.3,11.31699]
[1673241140170,1.71014138,1312.4,1312.3,11.31699]
[1673241140428,3.98992831,1312.4,1312.3,11.31699]
[1673241140647,1.71014138,1312.4,1312.3,11.31699]
[1673241140951,3.98992831,1312.4,1312.3,11.31699]
[1673241141565,1.71014138,1312.4,1312.3,11.31699]
[1673241142366,1.71014138,1312.4,1312.3,3.69679]
[1673241142579,8.68100958,1312.4,1312.3,3.69679]
[1673241142808,8.68100958,1312.4,1312.3,0.69679]
[1673241143260,10.96079651,1312.4,1312.3,0.69679]
[1673241143585,8.68100958,1312.4,1312.3,0.69679]
[1673241144586,8.68100958,1312.4,1312.3,0.6938576]
[1673241145336,10.96079651,1312.4,1312.3,0.6938576]
[1673241147780,8.68100958,1312.4,1312.3,0.6938576]
[1673241148153,10.96079651,1312.4,1312.3,0.6938576]
[1673241149528,8.68100958,1312.4,1312.3,0.6938576]
[1673241149974,10.96079651,1312.4,1312.3,0.6938576]
[1673241150198,8.68100958,1312.4,1312.3,0.6938576]
[1673241150361,10.96079651,1312.4,1312.3,0.6938576]
[1673241153459,12.10069909,1312.4,1312.3,0.6938576]
[1673241153847,9.25065513,1312.4,1312.3,0.6938576]
[1673241155104,12.10069909,1312.4,1312.3,0.6938576]
[1673241155420,12.10069909,1312.4,1312.2,10.62077]
[1673241155614,1.71132653,1312.3,1312.2,10.62077]
[1673241158461,3.99111346,1312.3,1312.2,10.62077]
[1673241158674,3.76281762,1312.3,1312.2,3.0]
[1673241159701,5.47463841,1312.3,1312.2,3.0]
[1673241159873,3.99160772,1312.3,1312.2,3.0]
[1673241160228,2.27978693,1312.3,1312.2,3.0]
[1673241161930,3.99177132,1312.3,1312.2,3.0]
[1673241163124,3.99177132,1312.3,1312.2,10.62078]
[1673241165638,3.99177132,1312.3,1312.2,3.0]
[1673241169003,3.99177132,1312.3,1312.2,2.99762791]
[1673241169698,1.71198439,1312.3,1312.2,2.99762791]
[1673241169915,3.99177132,1312.3,1312.2,2.99762791]
[1673241170158,1.71198439,1312.3,1312.2,2.99762791]
[1673241171607,1.71198439,1312.3,1312.2,10.61840791]
[1673241173161,3.99177132,1312.3,1312.2,10.61840791]
[1673241173595,2.27978693,1312.3,1312.2,10.61840791]
[1673241174568,2.27978693,1312.3,1312.2,2.99762791]
[1673241175256,3.9928437,1312.3,1312.2,2.99762791]
[1673241175398,2.27978693,1312.3,1312.2,2.99762791]
[1673241176456,5.12983089,1312.3,1312.2,2.99762791]
[1673241179325,2.27978693,1312.3,1312.2,2.99762791]
[1673241179654,5.12983089,1312.3,1312.2,1.99762791]
[1673241180238,2.27978693,1312.3,1312.2,1.99762791]
[1673241181212,5.12983089,1312.3,1312.2,1.99762791]
[1673241182365,2.27978693,1312.3,1312.2,1.99762791]
[1673241183116,5.12983089,1312.3,1312.2,1.99762791]
[1673241183537,2.27978693,1312.3,1312.2,1.99762791]
[1673241184307,5.12983089,1312.3,1312.2,1.99762791]
[1673241185342,2.27978693,1312.3,1312.2,1.99762791]
[1673241185727,3.99296689,1312.3,1312.2,1.99762791]
[1673241186309,3.99296689,1312.3,1312.2,9.61840791]
[1673241187332,5.12983089,1312.3,1312.2,1.99762791]
[1673241189195,5.13449491,1312.3,1312.2,1.99762791]
[1673241189930,2.85004396,1312.3,1312.2,1.99762791]
[1673241190602,5.13455053,1312.3,1312.2,1.99762791]
[1673241193551,10.03629926,1312.3,1312.2,1.99762791]
[1673241193722,8.33028861,1312.3,1311.9,15.296806]
[1673241193958,3.99805447,1312.1,1311.9,22.821906]
[1673241194130,3.99805447,1312.1,1312.0,3.0]
[1673241194341,3.99805447,1312.1,1312.0,10.62195]
[1673241194555,1.71348753,1312.1,1312.0,10.62195]
[1673241194878,1.10402352,1312.1,1312.0,10.62195]
[1673241195744,1.10135686,1312.1,1312.0,10.62195]
[1673241200378,1.10135686,1312.1,1312.0,11.40623]
[1673241203199,1.10135686,1312.1,1312.0,3.78428]
[1673241203375,1.10135686,1312.1,1312.0,11.40623]
[1673241206357,1.10135686,1312.1,1312.0,10.62195]
[1673241211617,1.10135686,1312.1,1312.0,11.28945]
[1673241212146,7.37736548,1312.1,1312.0,3.6675]
[1673241212320,16.8426836,1312.1,1312.0,0.6675]
[1673241212512,11.49910227,1312.1,1312.0,0.6675]
[1673241212727,9.2213136,1312.1,1312.0,0.6675]
[1673241213050,13.2213136,1312.1,1312.0,0.6675]
[1673241215726,15.49888595,1312.1,1312.0,0.6675]
[1673241215938,11.49888595,1312.1,1312.0,0.6675]
[1673241217296,9.2213136,1312.1,1311.9,0.052556]
[1673241217607,7.4471106,1312.0,1311.9,7.675086]
[1673241218238,7.4471106,1312.0,1311.9,0.052556]
[1673241218402,9.16774756,1312.0,1311.9,0.04989206]
[1673241219704,7.41774756,1312.0,1311.9,0.04989206]
[1673241222913,7.41774756,1312.0,1311.9,0.61017206]
[1673241227222,9.69484242,1312.0,1311.9,0.61017206]
[1673241227473,7.98688133,1312.0,1311.9,0.61017206]
[1673241227791,9.69490585,1312.0,1311.9,0.61017206]
[1673241228640,9.69490585,1312.0,1311.9,0.04989206]
[1673241234411,9.69490585,1312.0,1311.9,0.78889206]
[1673241235419,10.1871473,1312.0,1311.9,0.78889206]
[1673241235884,10.18800066,1312.0,1311.9,0.78889206]
[1673241236629,10.18800066,1312.0,1311.9,8.41142206]
[1673241236804,8.4673637,1312.0,1311.9,8.41142206]
[1673241239624,8.4673637,1312.0,1311.9,0.78889206]
[1673241239827,8.4673637,1312.0,1311.9,0.04989206]
[1673241240277,8.4673637,1312.0,1311.9,0.04630898]
[1673241242830,6.75848582,1312.0,1311.9,0.04630898]
[1673241242982,12.39301948,1312.0,1311.9,0.04630898]
[1673241243984,9.53731081,1312.0,1311.9,0.04630898]
[1673241244814,12.39301948,1312.0,1311.9,0.04630898]
[1673241245452,10.14341081,1312.0,1311.9,0.04630898]
[1673241245828,12.99911948,1312.0,1311.9,0.04630898]
[1673241246039,10.72202462,1312.0,1311.9,0.04630898]
[1673241248875,13.03385583,1312.0,1311.9,0.04630898]
[1673241250033,9.60531595,1312.0,1311.9,0.04630898]
[1673241250483,13.03385583,1312.0,1311.9,0.04630898]
[1673241251118,12.42775583,1312.0,1311.9,0.04630898]
[1673241253009,8.99921595,1312.0,1311.9,0.04630898]
[1673241255647,11.84902959,1312.0,1311.9,0.04630898]
[1673241256787,12.44128959,1312.0,1311.9,0.04630898]
[1673241257000,10.70228959,1312.0,1311.9,0.04630898]
[1673241257242,12.98107716,1312.0,1311.9,22.91389898]
[1673241257418,10.13126352,1312.0,1311.9,22.91389898]
[1673241257625,12.98107716,1312.0,1311.9,15.29136898]
[1673241257878,12.98107716,1312.0,1311.9,7.66883898]
[1673241258471,10.70228959,1312.0,1311.9,0.04630898]
[1673241260200,12.98089696,1312.0,1311.9,0.04630898]
[1673241262599,12.38863696,1312.0,1311.9,0.04630898]
[1673241263145,10.11002959,1312.0,1311.9,0.04630898]
[1673241264671,10.11002959,1312.0,1311.9,0.04377054]
[1673241274960,10.68875583,1312.0,1311.9,0.04377054]
[1673241275395,7.26021595,1312.0,1311.9,7.66630054]
[1673241275821,7.26021595,1312.0,1311.9,0.04377054]
[1673241276034,4.48139096,1312.0,1311.9,7.66630054]
[1673241277113,4.48139096,1312.0,1311.9,7.61630054]
[1673241277653,4.48139096,1312.0,1311.9,15.23883054]
[1673241280070,4.48139096,1312.0,1311.9,7.61630054]
[1673241280280,0.49224145,1312.0,1311.8,15.24561]
[1673241280448,3.34396652,1312.0,1311.9,7.62253]
[1673241280914,3.34396652,1312.0,1311.8,17.83916858]
[1673241281224,5.13331161,1311.9,1311.8,10.21634858]
[1673241281438,2.28158654,1311.9,1311.8,7.62279]
[1673241282234,5.13331161,1311.9,1311.8,7.62279]
[1673241283437,2.85172507,1311.9,1311.7,10.68997585]
[1673241283601,2.28260797,1311.8,1311.7,13.46424337]
[1673241284906,3.04460797,1311.8,1311.7,13.46424337]
[1673241287401,5.89633304,1311.8,1311.7,18.29233564]
[1673241287741,5.89633304,1311.8,1311.7,10.66864564]
[1673241288007,3.04460797,1311.8,1311.7,10.66864564]
[1673241288171,5.89633304,1311.8,1311.7,18.29233564]
[1673241288337,3.04460797,1311.8,1311.7,18.29233564]
[1673241288757,4.75623696,1311.8,1311.7,18.29233564]
[1673241289173,4.75623696,1311.8,1311.7,10.66864564]
[1673241290431,3.99423696,1311.8,1311.7,10.66864564]
[1673241291348,3.99423696,1311.8,1311.7,18.29233564]
[1673241292263,2.28260797,1311.8,1311.7,18.29233564]
[1673241292479,3.99399809,1311.8,1311.7,18.29233564]
[1673241294019,3.99399809,1311.8,1311.7,10.66864564]
[1673241294362,3.99399809,1311.8,1311.7,18.29233564]
[1673241294577,1.71139012,1311.8,1311.7,25.91602564]
[1673241294742,1.71139012,1311.8,1311.7,29.56041583]
[1673241295103,1.71139012,1311.8,1311.7,21.93672583]
[1673241295268,1.71139012,1311.8,1311.7,25.91602564]
[1673241295528,1.71139012,1311.8,1311.7,18.29233564]
[1673241295732,1.71139012,1311.8,1311.7,25.91602564]
[1673241296057,1.71139012,1311.8,1311.7,18.29233564]
[1673241296704,3.99399809,1311.8,1311.7,18.29233564]